bitfinex-derivatives/quotes_ETHF0:USTF0_20240927
["timestamp","ask_amount","ask_price","bid_price","bid_amount"]
[1727404216325,0.4128,2620.8,2620.5,3.17074]
[1727404216643,0.4128,2620.8,2620.6,0.38]
[1727404217233,0.4124,2620.9,2620.6,0.57074]
[1727404217529,0.4124,2620.9,2620.7,0.3851]
[1727404217730,0.4124,2620.9,2620.8,6.4]
[1727404218219,3.6058,2621.0,2620.8,6.4]
[1727404219134,3.2078,2621.0,2620.8,6.4]
[1727404220128,0.3754,2621.2,2620.9,3.8152]
[1727404220329,3.6162,2621.3,2620.8,6.59072]
[1727404221438,3.6162,2621.3,2620.8,6.59073]
[1727404221632,3.6162,2621.3,2620.9,0.19072]
[1727404221837,3.6162,2621.3,2620.8,6.4]
[1727404222233,3.2078,2621.0,2620.8,6.4]
[1727404222432,3.2078,2621.0,2620.7,0.3851]
[1727404222433,0.794,2620.9,2620.7,0.3851]
[1727404222639,0.3749,2620.8,2620.7,0.3851]
[1727404222839,0.3749,2620.8,2620.7,6.4]
[1727404225643,0.19077,2620.3,2619.9,0.089]
[1727404225843,7.356,2620.2,2619.5,0.389]
[1727404226142,3.2078,2620.0,2619.6,6.4]
[1727404229037,3.2078,2620.0,2619.6,6.59081]
[1727404229235,3.2078,2620.0,2619.6,6.4]
[1727404229738,3.2078,2620.0,2619.8,2.98]
[1727404229938,1.1682,2620.2,2619.8,2.98]
[1727404230434,1.1682,2620.2,2619.8,3.1708]
[1727404230928,1.1682,2620.2,2619.9,0.19079]
[1727404231132,0.7772,2620.2,2619.8,2.98]
[1727404231447,0.7772,2620.2,2619.9,6.4]
[1727404231448,0.3862,2620.2,2619.9,6.4]
[1727404231945,3.2078,2620.4,2620.0,0.7713]
[1727404232139,1.1309,2620.5,2620.0,3.7513]
[1727404232332,1.1309,2620.5,2620.0,4.33128]
[1727404232728,1.1309,2620.5,2620.1,0.19078]
[1727404233841,1.1309,2620.5,2620.0,4.33128]
[1727404234139,1.1309,2620.5,2620.0,0.7713]
[1727404234140,6.1878,2620.4,2620.0,0.7713]
[1727404234543,6.1878,2620.4,2620.0,0.3739]
[1727404236834,6.1878,2620.4,2619.9,6.4]
[1727404237944,3.2078,2620.4,2620.0,0.19079]
[1727404238444,3.2078,2620.4,2619.9,6.59079]
[1727404239537,3.2078,2620.4,2619.9,6.4]
[1727404240745,3.2078,2620.4,2619.9,6.59079]
[1727404242950,3.2078,2620.4,2620.0,0.19079]
[1727404243142,3.2078,2620.4,2619.9,6.59079]
[1727404243746,3.2078,2620.4,2620.0,0.19079]
[1727404243946,3.2078,2620.4,2619.9,6.59079]
[1727404244141,3.2078,2620.4,2620.0,0.19079]
[1727404244448,3.2078,2620.4,2619.9,6.59079]
[1727404244841,3.2078,2620.4,2620.0,0.19079]
[1727404245243,3.2078,2620.4,2619.9,6.4]
[1727404245244,3.2078,2620.4,2619.9,6.59079]
[1727404245546,3.2078,2620.4,2620.0,0.19079]
[1727404246445,1.1309,2620.5,2620.1,0.19078]
[1727404246649,1.1309,2620.5,2620.2,0.7996]
[1727404247347,3.39854,2620.7,2620.3,0.19076]
[1727404247348,3.2078,2620.7,2620.3,0.19076]
[1727404247542,3.2078,2620.7,2620.4,0.19076]
[1727404247749,3.2078,2620.7,2620.4,0.19075]
[1727404248052,3.2078,2620.7,2620.3,0.3995]
[1727404248437,3.2078,2620.7,2620.4,0.19075]
[1727404248643,3.2078,2620.7,2620.3,0.59026]
[1727404249345,3.2078,2620.7,2620.4,0.19076]
[1727404250249,3.2078,2620.7,2620.4,0.19075]
[1727404250447,3.2078,2620.7,2620.4,1.18898413]
[1727404251347,3.2078,2620.7,2620.5,0.19075]
[1727404251548,3.2078,2620.7,2620.4,1.18898413]
[1727404251944,3.2078,2620.7,2620.5,0.19075]
[1727404254553,3.2078,2620.7,2620.4,0.19075]
[1727404254941,3.2078,2620.7,2620.3,1.39773413]
[1727404255145,3.2078,2620.7,2620.3,1.58849413]
[1727404256050,3.6021,2620.7,2620.4,0.19076]
[1727404256251,3.6021,2620.7,2620.3,1.58849413]
[1727404257352,3.2078,2620.7,2620.3,1.39773413]
[1727404257756,3.2078,2620.7,2620.5,0.19075]
[1727404258247,3.2078,2620.7,2620.6,0.4124]
[1727404263058,0.3984,2620.8,2620.6,0.60314]
[1727404263357,3.606,2620.9,2620.7,0.3784]
[1727404264151,0.8131,2621.0,2620.7,0.3784]
[1727404264350,3.5987,2621.2,2620.8,0.41]
[1727404264760,3.5987,2621.2,2620.8,0.60073]
[1727404265156,3.7894,2621.2,2620.8,0.41]
[1727404265355,3.5987,2621.2,2620.8,0.60073]
[1727404265859,3.5987,2621.2,2620.8,0.41]
[1727404266057,3.5987,2621.2,2620.8,0.60073]
[1727404266262,3.5987,2621.2,2620.8,3.39]
[1727404266448,0.7652,2621.3,2621.0,2.98]
[1727404266649,0.3802,2621.3,2621.1,6.8076]
[1727404266846,0.3802,2621.3,2621.2,0.3911]
[1727404267054,0.3751,2621.5,2621.2,0.3911]
[1727404267254,0.3751,2621.5,2621.2,0.7861]
[1727404267454,0.3751,2621.5,2621.3,6.4]
[1727404268057,0.3751,2621.5,2621.3,6.59069]
[1727404268259,0.3751,2621.5,2621.4,0.19069]
[1727404268563,0.3751,2621.5,2621.3,6.59069]
[1727404268754,0.3751,2621.5,2621.3,6.4]
[1727404269161,0.3751,2621.5,2621.3,6.59069]
[1727404269765,0.3751,2621.5,2621.3,6.4]
[1727404270356,3.2078,2621.7,2621.4,3.8144]
[1727404270662,3.2078,2621.7,2621.5,0.4079]
[1727404275665,0.19069,2621.4,2620.9,0.3757]
[1727404275865,0.9672,2621.3,2620.9,0.3757]
[1727404276160,1.1562,2621.3,2620.9,6.7757]
[1727404276366,1.1562,2621.3,2620.9,0.3757]
[1727404276569,1.34689,2621.3,2620.9,0.3757]
[1727404276869,1.34689,2621.3,2621.0,6.4]
[1727404277560,1.1562,2621.3,2621.0,6.4]
[1727404277768,1.34689,2621.3,2621.0,6.4]
[1727404278560,1.1562,2621.3,2621.0,6.4]
[1727404282567,1.1562,2621.3,2621.0,9.38]
[1727404283370,1.1562,2621.3,2621.0,9.57071]
[1727404286464,1.1562,2621.3,2621.0,9.38]
[1727404287358,1.1562,2621.3,2621.0,6.4]
[1727404289173,1.1562,2621.3,2621.0,6.59071]
[1727404289969,3.2078,2621.4,2621.1,0.19071]
[1727404290273,3.2078,2621.4,2621.1,0.57591]
[1727404290470,3.2078,2621.4,2621.1,0.3852]
[1727404290674,3.2078,2621.4,2621.2,6.4]
[1727404290869,3.2078,2621.4,2621.3,0.3807]
[1727404291077,3.2078,2621.4,2621.3,0.7528]
[1727404291569,3.2078,2621.4,2621.3,7.1528]
[1727404294979,1.1772,2621.7,2621.3,8.15103413]
[1727404295275,0.398,2621.7,2621.4,1.18891413]
[1727404295580,0.398,2621.7,2621.5,0.3912]
[1727404295778,3.2078,2621.8,2621.4,0.99823413]
[1727404295980,0.3967,2621.7,2621.4,0.99823413]
[1727404296181,0.3967,2621.7,2621.3,8.73292413]
[1727404298273,0.3967,2621.7,2621.3,8.54223413]
[1727404298784,3.2078,2621.5,2621.3,7.77033413]
[1727404299078,0.381,2621.4,2621.3,7.77033413]
[1727404299275,0.7683,2621.4,2621.3,6.7721]
[1727404301082,0.7683,2621.4,2621.3,7.77033413]
[1727404302189,0.7683,2621.4,2621.3,6.7721]
[1727404302380,0.7683,2621.4,2621.3,7.77033413]
[1727404303285,0.3873,2621.4,2621.3,7.77033413]
[1727404303485,0.19068,2621.6,2621.3,7.77033413]
[1727404303686,0.377,2621.6,2621.3,7.77033413]
[1727404304289,0.3967,2621.7,2621.3,7.77033413]
[1727404304490,0.7737,2621.7,2621.3,8.17033413]
[1727404305391,3.2078,2621.5,2621.3,8.17033413]
[1727404305688,3.2078,2621.5,2621.3,7.77033413]
[1727404306486,3.2078,2621.5,2621.3,6.7721]
[1727404307389,0.19069,2621.4,2621.3,6.4]
[1727404308486,0.1907,2621.2,2620.8,0.99823413]
[1727404308686,1.37,2620.9,2620.6,1.40993413]
[1727404308889,3.2078,2620.8,2620.6,0.4117]
[1727404309095,3.2078,2620.8,2620.7,6.4]
[1727404311483,7.0238,2620.8,2620.7,6.4]
[1727404311694,16.19453,2620.8,2620.2,0.99823413]
[1727404311880,0.3768,2620.7,2620.2,1.37503413]
[1727404312086,0.3903,2620.6,2620.3,0.408]
[1727404313491,0.3768,2620.7,2620.4,2.98]
[1727404313997,3.2078,2620.8,2620.4,2.98]
[1727404314587,3.2078,2620.8,2620.4,3.97823413]
[1727404315291,3.2078,2620.8,2620.4,0.99823413]
[1727404317098,3.2078,2620.8,2620.3,1.40623413]
[1727404317699,3.2078,2620.8,2620.4,6.4]
[1727404318002,3.2078,2620.7,2620.4,6.4]
[1727404320906,3.2078,2620.7,2620.4,7.39823413]
[1727404321097,3.78402,2620.9,2620.4,7.39823413]
[1727404321402,3.78402,2620.9,2620.4,6.4]
[1727404321996,3.2078,2620.6,2620.4,6.4]
[1727404322197,1.1889,2620.5,2620.4,6.4]
[1727404322401,0.8036,2620.5,2620.4,6.4]
[1727404322600,3.2078,2620.6,2620.4,6.4]
[1727404323195,0.8036,2620.8,2620.4,6.4]
[1727404324308,3.2078,2620.7,2620.4,6.4]
[1727404325307,0.8036,2620.8,2620.4,6.4]
[1727404327606,0.398,2620.8,2620.4,6.4]
[1727404327806,3.5809,2621.0,2620.5,0.19075]
[1727404328011,3.5809,2621.0,2620.6,0.7813]
[1727404328407,5.68885231,2621.5,2620.7,9.772]
[1727404328609,4.15978,2621.5,2620.9,2.98]
[1727404328811,4.15978,2621.5,2621.0,0.19071]
[1727404329014,3.2078,2621.5,2621.2,0.1907]
[1727404329219,3.2078,2621.5,2621.3,0.392]
[1727404331010,0.19069,2621.4,2621.3,0.392]
[1727404331404,0.19069,2621.4,2621.1,0.7813]
[1727404332913,6.1878,2621.5,2621.1,0.972]
[1727404332914,3.2078,2621.5,2621.1,0.972]
[1727404333116,3.2078,2621.5,2621.1,0.7813]
[1727404333419,3.2078,2621.5,2621.2,0.1907]
[1727404333911,3.2078,2621.5,2621.3,0.393]
[1727404334717,3.2078,2621.5,2621.3,0.58369]
[1727404335319,3.2078,2621.5,2621.3,0.393]
[1727404335618,3.2078,2621.5,2621.3,0.58369]
[1727404335917,3.2078,2621.5,2621.3,0.393]
[1727404336919,5.39599715,2621.7,2621.4,6.7944]
[1727404337115,0.3824,2622.0,2621.5,3.56408]
[1727404337321,0.3824,2622.0,2621.6,0.3979]
[1727404337513,0.3824,2622.0,2621.6,0.58857]
[1727404337822,0.3824,2622.0,2621.7,0.3729]
[1727404338211,3.5882,2622.1,2621.7,3.3529]
[1727404338414,3.77883,2622.1,2621.7,0.3729]
[1727404338809,3.77883,2622.1,2621.8,6.4]
[1727404339011,3.5882,2622.1,2621.8,6.4]
[1727404339410,3.5882,2622.1,2621.9,0.3934]
[1727404342220,3.2078,2622.1,2621.9,0.3934]
[1727404343520,3.2078,2622.1,2621.9,4.207]
[1727404343716,6.1878,2622.1,2621.7,0.3729]
[1727404343919,0.19065,2621.9,2621.7,0.3729]
[1727404345019,1.33894,2622.0,2621.7,0.3729]
[1727404345216,1.1483,2622.0,2621.7,0.3729]
[1727404349019,3.2078,2622.1,2621.7,0.56356]
[1727404349221,3.2078,2622.1,2621.8,0.4104]
[1727404353919,3.2078,2622.1,2621.7,0.19066]
[1727404354124,3.2078,2621.8,2621.6,6.4]
[1727404354532,0.4027,2621.7,2621.6,6.4]
[1727404356830,0.59336,2621.7,2621.6,6.4]
[1727404357032,0.19068,2621.6,2621.2,4.131]
[1727404357222,3.2078,2621.3,2621.2,4.131]
[1727404357527,3.3985,2621.3,2621.1,6.4]
[1727404357730,0.7853,2621.2,2621.1,6.4]
[1727404359648,3.2078,2621.3,2621.1,13.1952]
[1727404359945,0.7501,2621.5,2621.2,0.5802]
[1727404360148,0.3759,2621.5,2621.3,2.98]
[1727404360649,0.3742,2621.8,2621.3,6.98509]
[1727404360948,0.7501,2621.8,2621.3,2.98]
[1727404361247,0.7501,2621.8,2621.4,0.19068]
[1727404362346,0.7501,2621.8,2621.3,3.17069]
[1727404362647,0.7501,2621.8,2621.4,0.19068]
[1727404363041,0.7501,2621.8,2621.3,3.17069]
[1727404363345,0.7501,2621.8,2621.3,2.98]
[1727404363645,0.7501,2621.8,2621.3,3.17069]
[1727404363839,0.7501,2621.8,2621.2,1.1995]
[1727404363840,0.3759,2621.8,2621.6,2.98]
[1727404364035,0.3759,2621.8,2621.7,0.8151]
[1727404364232,0.3719,2621.9,2621.7,0.8151]
[1727404364442,0.3868,2622.2,2621.8,6.7944]
[1727404364633,0.3868,2622.2,2621.8,2.98]
[1727404366647,0.3868,2622.2,2621.7,1.2159]
[1727404366844,0.76807,2622.2,2621.7,1.2159]
[1727404367042,0.38127,2622.1,2621.7,0.8151]
[1727404367243,3.97399,2622.0,2621.7,0.4093]
[1727404367648,0.7698,2621.9,2621.4,4.20603413]
[1727404367847,0.7698,2621.9,2621.4,3.5924]
[1727404370553,0.7698,2621.9,2621.4,0.3846]
[1727404370742,3.2078,2621.7,2621.4,0.3846]
[1727404370944,0.3843,2621.6,2621.4,0.3846]
[1727404371949,0.3843,2621.6,2621.3,0.4099]
[1727404372150,0.7994,2621.5,2621.3,0.4099]
[1727404372447,0.7994,2621.5,2621.2,1.39993413]
[1727404374150,0.7994,2621.5,2621.2,0.4017]
[1727404380156,0.7994,2621.5,2621.2,1.39993413]
[1727404380556,0.7994,2621.5,2621.2,0.4017]
[1727404381057,0.7994,2621.5,2621.2,1.39993413]
[1727404381454,0.7994,2621.5,2621.2,1.78133413]
[1727404381661,0.7994,2621.5,2621.2,3.3817]
[1727404382249,0.7994,2621.5,2621.4,0.99823413]
[1727404385064,0.7994,2621.5,2621.3,0.99823413]
[1727404385266,0.7994,2621.5,2621.4,0.99823413]
[1727404385565,0.7994,2621.5,2621.3,0.99823413]
[1727404385865,0.7994,2621.5,2621.4,0.99823413]
[1727404386166,0.7994,2621.5,2621.3,0.99823413]
[1727404389460,0.3843,2621.6,2621.3,0.99823413]
[1727404389666,0.3843,2621.6,2621.4,1.37103413]
[1727404389866,0.3843,2621.6,2621.4,0.3728]
[1727404390264,0.3843,2621.6,2621.4,1.37103413]
[1727404391766,0.3843,2621.6,2621.4,0.3728]
[1727404393769,0.3843,2621.6,2621.4,1.37103413]
[1727404394267,3.58913,2621.7,2621.4,1.37103413]
[1727404394268,3.2078,2621.7,2621.4,1.37103413]
[1727404394464,3.2078,2622.0,2621.5,14.36692308]
[1727404394656,0.3873,2622.2,2621.9,1.37]
[1727404394961,7.6635,2622.3,2622.1,1.37]
[1727404394962,3.2078,2622.3,2622.1,1.37]
[1727404395456,3.2078,2622.3,2622.2,6.4]
[1727404397265,0.3818,2622.6,2622.2,17.83857306]
[1727404397266,5.68885231,2622.6,2622.2,17.83857306]
[1727404397465,3.2078,2622.6,2622.4,2.98]
[1727404397664,3.2078,2622.6,2622.5,0.3922]
[1727404397974,3.2078,2622.6,2622.5,0.7857]
[1727404401077,2.86285231,2622.9,2622.5,1.1793]
[1727404401774,8.25393055,2623.1,2622.8,2.98]
[1727404401975,2.48105231,2623.2,2623.0,2.98]
[1727404402175,4.3791,2623.3,2623.0,0.3767]
[1727404402480,0.7902,2623.3,2623.0,0.3767]
[1727404403780,3.998,2623.3,2623.0,0.3767]
[1727404404882,0.38106,2623.6,2623.0,3.3567]
[1727404405080,0.38107,2623.5,2623.1,0.3948]
[1727404405583,0.38106,2623.6,2623.1,0.3948]
[1727404405881,0.38107,2623.5,2623.1,0.3948]
[1727404406078,4.3453,2623.7,2623.1,0.3948]
[1727404406289,0.38106,2623.6,2623.1,0.3948]
[1727404406874,1.1375,2623.7,2623.2,3.3611]
[1727404407179,1.1375,2623.7,2623.3,0.3811]
[1727404407180,3.5825,2623.7,2623.3,0.3811]
[1727404407380,3.5825,2623.7,2623.4,6.4]
[1727404407683,3.5825,2623.7,2623.5,0.3943]
[1727404408884,3.96354,2623.7,2623.5,0.3943]
[1727404409779,3.5825,2623.7,2623.5,0.3943]
[1727404409974,3.2078,2623.7,2623.5,0.3943]
[1727404410478,3.58885,2623.7,2623.4,6.4]
[1727404411285,0.38106,2623.6,2623.4,6.4]
[1727404411475,3.58885,2623.7,2623.4,6.4]
[1727404411677,7.0198,2623.7,2622.9,6.1878]
[1727404411970,0.38108,2623.5,2623.1,8.1761853]
[1727404412175,0.38109,2623.4,2623.2,6.4]
[1727404412375,1.55609,2623.4,2623.2,6.4]
[1727404414485,1.175,2623.4,2623.2,6.4]
[1727404416589,0.38112,2623.2,2622.7,2.98]
[1727404416788,3.2078,2623.1,2622.8,0.3927]
[1727404416980,3.2078,2623.1,2622.8,6.7927]
[1727404417180,0.405,2623.0,2622.8,6.7927]
[1727404418885,0.38116,2622.9,2622.8,6.7927]
[1727404419184,0.38116,2622.9,2622.4,3.36122]
[1727404419185,0.804,2622.9,2622.4,3.36122]
[1727404419382,0.804,2622.9,2622.6,2.98]
[1727404419583,0.804,2622.9,2622.6,9.38]
[1727404419784,0.804,2622.9,2622.7,0.3831]
[1727404420791,0.4043,2622.9,2622.8,0.4071]
[1727404425485,0.405,2623.0,2622.8,3.3871]
[1727404428489,0.78614,2623.0,2622.8,0.4071]
[1727404429183,0.78614,2623.0,2622.7,0.3831]
[1727404429390,0.8097,2622.9,2622.7,0.3831]
[1727404430508,0.8097,2622.9,2622.8,1.37]
[1727404431403,3.2078,2623.1,2622.8,5.1828]
[1727404431600,0.7743,2623.6,2622.9,5.5574]
[1727404431904,3.2078,2624.0,2623.6,1.37]
[1727404432201,0.73698,2624.1,2623.0,8.06674169]
[1727404432202,4.5778,2623.7,2623.0,0.089]
[1727404432396,3.58889,2623.4,2623.0,1.37]
[1727404432797,0.3811,2623.3,2623.0,1.37]
[1727404432995,3.2078,2623.4,2623.0,1.37]
[1727404432996,3.58889,2623.4,2623.0,1.37]
[1727404434301,3.58889,2623.4,2622.9,3.3497]
[1727404434699,0.38111,2623.3,2622.9,3.3497]
[1727404435006,3.2078,2623.4,2622.9,3.3497]
[1727404435397,1.1823,2623.6,2622.9,3.3497]
[1727404435601,3.58889,2623.4,2622.9,3.3497]
[1727404436096,0.3811,2623.3,2622.9,3.3497]
[1727404436402,0.4038,2623.2,2622.9,0.3797]
[1727404440300,0.4038,2623.2,2622.9,3.3497]
[1727404440505,0.3811,2623.4,2622.9,3.3497]
[1727404440701,0.7696,2623.4,2622.9,3.3497]
[1727404441207,3.25065231,2623.4,2622.9,3.73086]
[1727404441504,0.7743,2623.6,2623.2,2.97]
[1727404441700,1.15536,2623.6,2623.3,0.8087]
[1727404441900,0.38103,2623.8,2623.4,2.97]
[1727404442105,1.17732,2623.9,2623.5,0.4122]
[1727404442402,0.7963,2623.9,2623.6,2.97]
[1727404442606,0.38104,2623.8,2623.5,0.4122]
[1727404442798,0.38104,2623.8,2623.6,6.4]
[1727404442994,3.58884,2623.7,2623.6,6.4]
[1727404443195,0.38104,2623.7,2623.6,6.4]
[1727404443600,3.58884,2623.7,2623.6,6.4]
[1727404443798,3.2078,2623.7,2623.6,6.4]
[1727404444104,3.58884,2623.7,2623.6,6.4]
[1727404444297,3.2078,2623.7,2623.6,6.4]
[1727404444804,3.58884,2623.7,2623.6,6.4]
[1727404445104,0.38108,2623.5,2623.3,0.8087]
[1727404445295,0.3883,2623.4,2623.3,0.8087]
[1727404445508,0.3883,2623.4,2623.3,7.2087]
[1727404447404,0.76938,2623.4,2623.3,7.2087]
[1727404447709,0.3883,2623.4,2623.3,7.2087]
[1727404451905,0.3826,2623.5,2623.3,7.2087]
[1727404454706,3.24775231,2623.6,2623.3,7.2087]
[1727404456610,0.7667,2623.6,2623.3,8.20693413]
[1727404456810,0.7667,2623.6,2623.3,7.2087]
[1727404457210,0.7667,2623.6,2623.3,8.20693413]
[1727404457613,0.7667,2623.6,2623.3,7.2087]
[1727404458117,0.7667,2623.6,2623.3,8.20693413]
[1727404458508,1.14776,2623.6,2623.3,8.20693413]
[1727404458714,0.38108,2623.5,2623.2,3.96823413]
[1727404459215,0.4077,2623.4,2623.2,7.39823413]
[1727404461621,0.78879,2623.4,2623.2,6.4]
[1727404461821,0.4077,2623.4,2623.2,6.4]
[1727404462021,0.4077,2623.4,2623.2,7.39823413]
[1727404463019,0.4077,2623.4,2623.2,6.4]
[1727404463723,0.78879,2623.4,2623.2,6.4]
[1727404463918,0.4077,2623.4,2623.2,6.4]
[1727404464721,0.3811,2623.3,2623.2,6.4]
[1727404466110,0.3811,2623.3,2623.1,0.4058]
[1727404466317,0.4091,2623.2,2623.1,0.4058]
[1727404466620,0.4091,2623.2,2623.1,6.8058]
[1727404467120,3.99659,2623.4,2623.1,6.8058]
[1727404467322,0.7902,2623.3,2623.1,6.8058]
[1727404467723,0.4091,2623.3,2623.1,6.8058]
[1727404468721,0.4091,2623.3,2623.1,0.4058]
[1727404469029,2.87005231,2623.6,2623.2,2.97]
[1727404469030,0.38108,2623.5,2623.2,2.97]
[1727404469322,3.97786,2623.6,2623.3,6.8002]
[1727404469828,0.38107,2623.5,2623.3,6.8002]
[1727404470126,3.97786,2623.6,2623.3,6.8002]
[1727404470524,3.97787,2623.6,2623.3,6.8002]
[1727404471522,3.97786,2623.6,2623.3,6.8002]
[1727404471919,3.5968,2623.6,2623.3,10.15129]
[1727404472122,3.2078,2623.6,2623.4,0.38108]
[1727404472322,3.2078,2623.6,2623.3,11.14952413]
[1727404473324,3.2078,2623.6,2623.4,0.99823413]
[1727404473825,3.2078,2623.6,2623.5,0.3738]
[1727404474228,0.38105,2623.7,2623.5,0.3738]
[1727404474521,3.58886,2623.6,2623.5,0.3738]
[1727404474721,3.2078,2623.6,2623.5,0.3738]
[1727404474919,3.2078,2623.6,2623.5,3.3438]
[1727404476317,3.2078,2623.6,2623.5,4.34203413]
[1727404476530,3.2078,2623.6,2623.5,1.37203413]
[1727404476725,3.2078,2623.6,2623.5,0.3738]
[1727404478130,3.2078,2623.6,2623.5,1.37203413]
[1727404478523,0.38104,2623.7,2623.5,1.37203413]
[1727404478725,3.2078,2623.6,2623.5,1.37203413]
[1727404479627,3.58886,2623.6,2623.5,1.37203413]
[1727404479929,3.58886,2623.6,2623.5,0.3738]
[1727404481733,3.58886,2623.6,2623.5,1.37203413]
[1727404481931,3.58886,2623.6,2623.5,0.3738]
[1727404482227,3.58886,2623.6,2623.5,1.37203413]
[1727404482429,3.58886,2623.6,2623.5,0.3738]
[1727404482636,0.38107,2623.5,2623.4,0.99823413]
[1727404482831,1.56447,2623.5,2623.4,0.99823413]
[1727404483021,1.1834,2623.5,2623.4,0.99823413]
[1727404483227,1.56447,2623.5,2623.4,0.99823413]
[1727404483423,1.56447,2623.5,2623.4,2.33584756]
[1727404483731,1.56447,2623.5,2623.4,2.33585374]
[1727404484029,1.56447,2623.5,2623.4,0.99823413]
[1727404484231,1.56447,2623.5,2623.4,0.99957622]
[1727404485335,1.56447,2623.5,2623.4,2.33746779]
[1727404485836,1.1834,2623.5,2623.4,2.33746779]
[1727404486129,1.1834,2623.5,2623.4,1.33789157]
[1727404486337,3.58886,2623.6,2623.4,2.33760508]
[1727404486532,3.2078,2623.6,2623.5,0.99971351]
[1727404486732,3.58886,2623.6,2623.3,9.55621351]
[1727404487333,0.38106,2623.6,2623.4,0.99971351]
[1727404487637,3.58886,2623.6,2623.4,0.99971351]
[1727404487828,0.38106,2623.6,2623.4,0.99971351]
[1727404488035,3.58886,2623.6,2623.4,0.99971351]
[1727404489132,3.2078,2623.6,2623.4,0.99971351]
[1727404489331,0.38106,2623.6,2623.4,0.99971351]
[1727404491641,3.58886,2623.6,2623.4,0.99971351]
[1727404492324,0.38106,2623.6,2623.4,0.99971351]
[1727404492530,2.86210231,2623.7,2623.4,0.99971351]
[1727404493544,2.86209231,2623.7,2623.5,1.37]
[1727404493736,0.38104,2623.7,2623.5,2.36971351]
[1727404494240,3.26405231,2623.8,2623.5,2.36971351]
[1727404494740,0.783,2623.8,2623.6,0.99971351]
[1727404495133,0.783,2623.8,2623.7,0.3787]
[1727404495336,1.16403,2623.8,2623.7,0.3787]
[1727404497737,1.16403,2623.8,2623.6,0.99971351]
[1727404497945,1.16403,2623.8,2623.5,2.77251351]
[1727404498134,1.16403,2623.8,2623.6,0.99971351]
[1727404498644,1.16403,2623.8,2623.5,2.77251351]
[1727404498940,1.16403,2623.8,2623.6,0.99971351]
[1727404499140,1.16403,2623.8,2623.5,2.77251351]
[1727404500348,0.38106,2623.6,2623.5,1.40251351]
[1727404500540,3.58886,2623.6,2623.5,0.99971351]
[1727404501754,0.38107,2623.5,2623.3,7.79991351]
[1727404501944,0.3892,2623.4,2623.3,7.79991351]
[1727404502146,0.7702,2623.4,2623.3,7.79991351]
[1727404502845,0.7702,2623.4,2623.3,6.8002]
[1727404504443,0.7702,2623.4,2623.2,1.40021351]
[1727404504649,10.87085231,2623.3,2622.9,0.99971351]
[1727404504847,5.70077325,2623.0,2622.8,1.37]
[1727404505453,3.2078,2623.0,2622.8,1.37]
[1727404505642,3.2078,2623.0,2622.9,1.37]
[1727404508961,3.58894,2623.0,2622.7,8.1524]
[1727404509251,4.76744,2623.0,2622.7,8.1524]
[1727404509451,1.1785,2623.0,2622.7,8.1524]
[1727404509845,1.1785,2623.0,2622.7,9.15211351]
[1727404510457,3.2078,2623.1,2622.9,1.37]
[1727404510656,3.2078,2623.1,2623.0,0.7845]
[1727404511348,4.379,2623.4,2623.0,0.7845]
[1727404511663,3.58893,2623.1,2623.0,0.3916]
[1727404511951,3.58893,2623.1,2622.7,9.15211351]
[1727404512158,1.1712,2623.0,2622.8,0.3916]
[1727404512549,1.1712,2623.0,2622.9,1.37]
[1727404515044,1.55234,2623.0,2622.9,1.37]
[1727404515248,1.55234,2623.0,2622.8,0.3916]
[1727404515451,0.38116,2622.9,2622.8,0.3916]
[1727404515652,1.55235,2623.0,2622.7,6.4]
[1727404515852,0.38116,2622.9,2622.8,0.4063]
[1727404516059,3.58896,2622.9,2622.8,0.4063]
[1727404516254,3.58896,2622.9,2622.7,6.4]
[1727404516864,3.2078,2622.9,2622.7,6.4]
[1727404519558,1.55236,2623.0,2622.7,6.4]
[1727404520259,1.1712,2623.0,2622.7,7.77]
[1727404522760,0.39,2623.0,2622.7,7.77]
[1727404522960,3.2078,2623.2,2622.9,1.37]
[1727404522961,3.58892,2623.2,2622.9,1.37]
[1727404523160,3.58892,2623.2,2623.0,0.7677]
[1727404523661,3.58892,2623.2,2623.0,2.1377]
[1727404524061,3.2078,2623.2,2623.0,2.1377]
[1727404524465,3.58892,2623.2,2623.0,2.1377]
[1727404525064,0.38113,2623.1,2623.0,0.7677]
[1727404526365,3.2078,2623.2,2623.0,0.7677]
[1727404526560,0.38113,2623.1,2623.0,0.7677]
[1727404527166,0.38113,2623.1,2623.0,1.1489]
[1727404531365,1.37,2623.5,2623.0,1.1489]
[1727404531366,4.45906,2623.6,2623.0,6.3309]
[1727404531564,4.45906,2623.6,2623.5,1.37]
[1727404532166,4.45906,2623.6,2623.4,1.37]
[1727404532368,4.45906,2623.6,2623.5,0.4096]
[1727404532675,4.078,2623.6,2623.5,1.7796]
[1727404533676,3.2078,2623.7,2623.5,1.7796]
[1727404534268,3.58885,2623.7,2623.5,1.7796]
[1727404534566,3.58885,2623.7,2623.5,0.4096]
[1727404534772,3.2078,2623.7,2623.5,0.4096]
[1727404534979,3.2078,2623.7,2623.5,0.7832]
[1727404535169,3.58884,2623.7,2623.5,0.7832]
[1727404539072,0.38104,2623.7,2623.5,1.171]
[1727404539371,0.3716,2624.0,2623.5,6.3522]
[1727404539573,0.38099,2624.1,2623.9,1.37]
[1727404539779,0.38099,2624.1,2624.0,0.7799]